Cogmind - Beta 13 @@@ ROGUE MODE // 2024.05.05 @ 21:02:35 Player: adenochrome Result: Core destroyed Performance ------------- Evolutions (1) 500 Regions Visited (6) 1200 Robots Destroyed (49) 245 Value Destroyed (1151) 1151 Prototype IDs (24) 480 Alien Tech Used (0) 0 Bonus (300) 300 TOTAL SCORE: 3876 Bonus ------- Aligned with FarCom 300 Cogmind --------- Core Integrity 0/400 Matter 300/300 Energy 59/100 System Corruption 1% Temperature Critical (536) Movement Core (300) Ox5 Location -8/Mines Parts ------- > --- POWER (1) -------- (None) > --- PROPULSION (2) --- (None) > --- UTILITY (4) ------ Medium Storage Unit Signal Interpreter Improved Terrain Scanner > --- WEAPON (2) ------- Improved Medium Laser Improved Medium Laser > --- INVENTORY (10) --- Light Nuclear Core Flight Unit Flight Unit Flight Unit Propulsion Shielding Propulsion Shielding Hacking Suite Hacking Suite Trap Reconfigurator Gauss Rifle Peak State ------------ > --- POWER ------------ Improved Ion Engine > --- PROPULSION ------- Improved Treads Improved Treads > --- UTILITY ---------- Heat Sink Medium Storage Unit Sensor Array Signal Interpreter > --- WEAPON ----------- Improved Medium Laser Improved Medium Laser > --- INVENTORY -------- Light Ion Engine Flight Unit Flight Unit Flight Unit Improved Terrain Scanner Propulsion Shielding Propulsion Shielding Hacking Suite Hacking Suite Light Assault Rifle [Rating: 17] Favorites ----------- Power Ion Engine Engine Ion Engine Propulsion Aluminum Leg Treads Improved Treads Leg Aluminum Leg Utility Signal Interpreter Device Heat Sink Storage Medium Storage Unit Processor Signal Interpreter Weapon Improved Medium Laser Energy Gun Improved Medium Laser Ballistic Gun Assault Rifle Build | -11 -10 -10 -9 -9 -9 -8 ------- Run | Yrd Mat Min Mat Min Exi Min Slots Evolved 2 | . . . 2 . . . Power . | . . . . . . . Propulsion . | . . . . . . . Utility 2 | . . . 2 . . . Weapon . | . . . . . . . Parts Attached 30 | 6 9 . 11 . 2 2 Power 5 | 1 2 . 1 . . 1 Engine 5 | 1 2 . 1 . . 1 Core . | . . . . . . . Reactor . | . . . . . . . Propulsion 7 | 2 2 . 3 . . . Treads 2 | . . . 2 . . . Leg 5 | 2 2 . 1 . . . Wheel . | . . . . . . . Hover . | . . . . . . . Flight . | . . . . . . . Utility 6 | 1 1 . 3 . . 1 Device 3 | . . . 2 . . 1 Storage 2 | 1 . . 1 . . . Processor 1 | . 1 . . . . . Hackware . | . . . . . . . Protection . | . . . . . . . Artifact . | . . . . . . . Weapon 12 | 2 4 . 4 . 2 . Energy Gun 7 | . 1 . 4 . 2 . Energy Cannon . | . . . . . . . Ballistic Gun 5 | 2 3 . . . . . Ballistic Cannon . | . . . . . . . Launcher . | . . . . . . . Special Weapon . | . . . . . . . Impact Weapon . | . . . . . . . Slashing Weapon . | . . . . . . . Piercing Weapon . | . . . . . . . Special Melee Weapon . | . . . . . . . Unidentified Prototypes 1 | . . . 1 . . . Parts Lost 11 | . 5 . . 3 . 3 Power 3 | . 1 . . 1 . 1 Propulsion 3 | . 1 . . 1 . 1 Utility 2 | . . . . 1 . 1 Weapon 3 | . 3 . . . . . Highest Loss Streak 3 | . 3 . . 3 . 3 To Critical Strikes . | . . . . . . . Average Slot Usage (%) 89 | . 96 100 94 80 66 84 Engine 9 | . 13 14 11 4 . 9 Treads 6 | . . . 7 15 11 9 Leg 14 | . 27 28 14 . . . Device 10 | . . . 16 15 11 20 Storage 12 | . 14 14 11 11 11 11 Processor 11 | . 11 14 11 11 11 11 Energy Gun 16 | . 3 14 21 22 22 22 Ballistic Gun 7 | . 24 14 . . . . Naked Turns . | . . . . . . . Heaviest Build 27 | 14 14 14 27 25 17 21 Greatest Support 46 | 20 20 20 46 46 23 23 Greatest Overweight (x) 1 | 1 1 . 1 . . . Average Overweight (x) . | . . . . . . . Largest Inventory Capacity 10 | 8 8 8 10 10 10 10 Average Capacity 9 | 7 8 8 9 10 10 10 Most Carried 10 | 3 8 8 10 10 10 10 Average Carried 8 | 1 6 8 9 10 9 9 Final Capacity 10 | 8 8 8 10 10 10 10 Final Carried 10 | 3 8 8 10 10 10 10 Class Distribution -------------------- 77% | Mutant 12% | Scavenger-Mutant 9% | Scavenger-Skirmisher Dominant Class ---------------- Mutant | -10/Materials Scavenger-Mutant | -10/Mines Mutant | -9/Materials Mutant | -9/Mines Mutant | -9/Exiles Scavenger-Skirmisher | -8/Mines Resources | -11 -10 -10 -9 -9 -9 -8 ----------- Run | Yrd Mat Min Mat Min Exi Min Matter Collected 763 | 204 413 2 99 5 . 40 Remotely . | . . . . . . . Salvage Created 1419 | . 592 23 649 . . 155 Parts 96 | . 48 4 40 . . 4 Haulers Intercepted 3 | . 1 . 2 . . . Recyclers Shooed 1 | . . . 1 . . . Parts Field Recycled . | . . . . . . . Retrieved Matter . | . . . . . . . Parts Self-Destructed . | . . . . . . . Prevented . | . . . . . . . Kills | -11 -10 -10 -9 -9 -9 -8 ------- Run | Yrd Mat Min Mat Min Exi Min Combat Hostiles Destroyed 38 | . 16 . 17 2 . 3 Guns 36 | . 15 . 16 2 . 3 Classes Destroyed 11 | . 6 . 2 1 . 2 Worker 1 | . . . 1 . . . Tunneler 2 | . 1 1 . . . . Hauler 3 | . 1 . 2 . . . Operator 4 | . 3 . 1 . . . Watcher 1 | . 1 . . . . . Swarmer 16 | . 6 . 10 . . . Grunt 14 | . 10 . 3 . . 1 Duelist 1 | . . . . . . 1 Sentry 4 | . . . 4 . . . Demolisher 2 | . . . . 2 . . Hunter 1 | . . . . . . 1 Best Kill Streak 6 | . 4 1 6 2 . 1 Combat Bots Only 5 | . 4 . 5 2 . 1 Max Kills in Single Turn 2 | . 1 1 2 1 . 1 Gunslinging 1 | . . . 1 . . . Exploded . | . . . . . . . Melee . | . . . . . . . Uniques/NPCs Destroyed . | . . . . . . . Combat | -11 -10 -10 -9 -9 -9 -8 -------- Run | Yrd Mat Min Mat Min Exi Min Hostile Shots Fired 205 | . 90 . 62 10 . 43 Missed 46 | . 18 . 13 1 . 14 Damage Taken 2247 | . 799 . 497 406 . 545 Core 594 | . 128 . 157 94 . 215 Absorbed by Shields . | . . . . . . . Core Remaining (%) 74 | 100 . 48 . . . . Volleys Fired 140 | . 71 2 45 3 . 19 Largest 2 | . 2 2 2 2 . 2 Hottest 112 | . 85 85 112 112 . 112 Shots Fired 278 | . 139 4 90 6 . 39 Gun 278 | . 139 4 90 6 . 39 Cannon . | . . . . . . . Launcher . | . . . . . . . Special . | . . . . . . . Kinetic 124 | . 122 2 . . . . Thermal 154 | . 17 2 90 6 . 39 Explosive . | . . . . . . . Electromagnetic . | . . . . . . . Robot Hit Streak 15 | . 15 4 13 9 . 5 Robot Miss Streak 5 | . 5 . 4 . . 4 Penetration Max . | . . . . . . . Secondary Targets 5 | . 2 . 2 . . 1 Max Gunslinging Chain 1 | . 1 . 1 . . 1 Shots Hit Robots 184 | . 94 3 59 6 . 22 Core Hits 68 | . 32 1 25 3 . 7 Critical Kills . | . . . . . . . Critical Parts Destroyed . | . . . . . . . Critical Strikes 10 | . 3 . 5 . . 2 Burn 10 | . 3 . 5 . . 2 Melee Attacks . | . . . . . . . Impact . | . . . . . . . Slashing . | . . . . . . . Piercing . | . . . . . . . Sneak Attacks . | . . . . . . . Combat Hostiles . | . . . . . . . Follow-up Attacks . | . . . . . . . Damage Inflicted 2641 | . 1182 42 906 103 . 408 Guns 2636 | . 1177 42 906 103 . 408 Cannons . | . . . . . . . Explosions . | . . . . . . . Melee . | . . . . . . . Ramming 5 | . 5 . . . . . Kinetic 932 | . 926 6 . . . . Thermal 1704 | . 251 36 906 103 . 408 Explosive . | . . . . . . . Electromagnetic . | . . . . . . . Impact . | . . . . . . . Slashing . | . . . . . . . Piercing . | . . . . . . . Highest Corruption 1 | . . . 1 1 1 1 Average Corruption 1 | . . . 1 1 1 1 Corruption Purged . | . . . . . . . Corruption Blocked . | . . . . . . . Effects 12 | . . . 7 1 1 3 Message Errors 4 | . . . 3 . 1 . Matter Fused 1 | . . . 1 . . . Energy Discharges 3 | . . . 1 1 . 1 Data Loss (minor) 3 | . . . 2 . . 1 Misfires 1 | . . . . . . 1 Overload Shots . | . . . . . . . Overflow Damage . | . . . . . . . Projectiles . | . . . . . . . Explosions . | . . . . . . . Melee . | . . . . . . . Knockbacks . | . . . . . . . Impact . | . . . . . . . Kinetic . | . . . . . . . Secondary . | . . . . . . . Self-Inflicted Damage . | . . . . . . . Shots . | . . . . . . . Rammed . | . . . . . . . Targets Rammed 2 | . 2 . . . . . Kicked 2 | . 2 . . . . . Crushed . | . . . . . . . Highest Temperature 536 | . 226 44 342 10 . 536 Average Temperature 92 | . 59 24 85 6 . 212 Received Heat Transfer 705 | . 354 . 117 . . 234 Effects 5 | . . . 1 . . 4 Shutdowns 1 | . . . 1 . . . Short Circuit 1 | . . . . . . 1 Damage (minor) 2 | . . . . . . 2 Damage (core) 1 | . . . . . . 1 Siege Activations . | . . . . . . . Robots Corrupted . | . . . . . . . Combat Hostiles . | . . . . . . . Parts Fried . | . . . . . . . Impact Corruptions . | . . . . . . . Robots Melted 2 | . 1 . 1 . . . Combat Hostiles 2 | . 1 . 1 . . . Parts Melted 17 | . 2 . 11 . . 4 Heat Transferred 4773 | . 777 74 2664 222 . 1036 Parts Sabotaged . | . . . . . . . Parts Stolen . | . . . . . . . Parts Stripped . | . . . . . . . Power Chain Reactions . | . . . . . . . Alert | -11 -10 -10 -9 -9 -9 -8 ------- Run | Yrd Mat Min Mat Min Exi Min Peak Influence 310 | . 301 65 310 155 . 75 Initial 120 | . . 60 25 120 . . Average 115 | . 93 62 159 135 . 45 Maximum Alert Level 1 | . 1 . 1 . . . Low Security (%) 80 | 100 88 100 60 100 . 100 Level 1 19 | . 11 . 39 . . . Level 2 . | . . . . . . . Level 3 . | . . . . . . . Level 4 . | . . . . . . . Level 5 . | . . . . . . . High Security . | . . . . . . . Max Security . | . . . . . . . Squads Dispatched 4 | . 4 . . . . . Investigation 1 | . 1 . . . . . Extermination . | . . . . . . . Reinforcement 3 | . 3 . . . . . Assault . | . . . . . . . Garrison . | . . . . . . . Intercept . | . . . . . . . Searches Triggered . | . . . . . . . Construction Impeded . | . . . . . . . Haulers Reinforced . | . . . . . . . Active Scanning Responses . | . . . . . . . Cargo Convoy Interrupts . | . . . . . . . Stealth | -11 -10 -10 -9 -9 -9 -8 --------- Run | Yrd Mat Min Mat Min Exi Min Distress Signals 4 | . 3 . 1 . . . Communications Jammed . | . . . . . . . Distress Signals . | . . . . . . . Times Spotted 59 | . 29 . 22 4 . 4 Peak Tracking Total 7 | . 6 . 7 2 . 3 Tactical Retreats 4 | . 3 . . 1 . . Traps | -11 -10 -10 -9 -9 -9 -8 ------- Run | Yrd Mat Min Mat Min Exi Min Traps Triggered 3 | . 2 . 1 . . . Indirectly . | . . . . . . . Trap Hack Attempts . | . . . . . . . Triggered . | . . . . . . . Disarmed . | . . . . . . . Reprogrammed . | . . . . . . . Reused . | . . . . . . . Traps Extracted . | . . . . . . . Installed . | . . . . . . . Triggered . | . . . . . . . Machines | -11 -10 -10 -9 -9 -9 -8 ---------- Run | Yrd Mat Min Mat Min Exi Min Machines Disabled . | . . . . . . . Max in Single Turn . | . . . . . . . Machines Repaired . | . . . . . . . Machines Dismantled . | . . . . . . . Machines Sabotaged . | . . . . . . . Overloaded Fab Kills . | . . . . . . . Hacking | -11 -10 -10 -9 -9 -9 -8 --------- Run | Yrd Mat Min Mat Min Exi Min Machines Accessed 11 | . 4 . 6 . 1 . Terminals 10 | . 4 . 6 . . . Fabricators . | . . . . . . . Repair Stations . | . . . . . . . Recycling Units . | . . . . . . . Scanalyzers . | . . . . . . . Garrison Access . | . . . . . . . Total Hacks 25 | . 8 . 16 . 1 . Successful 8 | . 2 . 5 . 1 . Failed 17 | . 6 . 11 . . . Catastrophic 5 | . 3 . 2 . . . Database Lockouts . | . . . . . . . Manual 12 | . 8 . 3 . 1 . Terminals 24 | . 8 . 16 . . . Fabricators . | . . . . . . . Repair Stations . | . . . . . . . Recycling Units . | . . . . . . . Scanalyzers . | . . . . . . . Garrison Access . | . . . . . . . Terminal Hacks 8 | . 2 . 5 . 1 . Robot Analysis 1 | . 1 . . . . . Emergency Access Points 1 | . . . 1 . . . Locate Traps 1 | . . . 1 . . . Dispatch Records 1 | . . . 1 . . . Surveillance Status 1 | . . . 1 . . . Hauler Manifests 1 | . 1 . . . . . Zone Layout 1 | . . . 1 . . . Derelict Proto ID Bank 1 | . . . . . 1 . Fabricator Hacks . | . . . . . . . Repair Station Hacks . | . . . . . . . Recycling Unit Hacks . | . . . . . . . Scanalyzer . | . . . . . . . Garrison Access Hacks . | . . . . . . . Unauthorized Hacks . | . . . . . . . Terminals . | . . . . . . . Fabricators . | . . . . . . . Repair Stations . | . . . . . . . Recycling Units . | . . . . . . . Scanalyzers . | . . . . . . . Garrison Access . | . . . . . . . Data Cores Recovered 1 | . . . 1 . . . Used 1 | . . . 1 . . . Hacking Detections 9 | . 4 . 5 . . . Full Trace Events 1 | . 1 . . . . . Feedback Events . | . . . . . . . Feedback Blocked . | . . . . . . . Robot Schematics Acquired . | . . . . . . . Robots Built . | . . . . . . . Authchips . | . . . . . . . Time . | . . . . . . . Total Robot Build Rating . | . . . . . . . Part Schematics Acquired . | . . . . . . . Parts Built . | . . . . . . . Authchips . | . . . . . . . Time . | . . . . . . . Total Part Build Rating . | . . . . . . . Parts Repaired . | . . . . . . . Time . | . . . . . . . Parts Recycled . | . . . . . . . Recycled Matter . | . . . . . . . Retrieved Matter . | . . . . . . . Retrieved Components . | . . . . . . . Parts Scanalyzed . | . . . . . . . Part Schematics Acquired . | . . . . . . . Parts Damaged . | . . . . . . . Bothacking | -11 -10 -10 -9 -9 -9 -8 ------------ Run | Yrd Mat Min Mat Min Exi Min Used RIF Installer . | . . . . . . . Robots Hacked . | . . . . . . . Non-combat . | . . . . . . . Combat . | . . . . . . . Robot Hacks Applied . | . . . . . . . Relay Couplers Released . | . . . . . . . Fabnet Peak Effective % . | . . . . . . . Robots Rewired . | . . . . . . . Allies Hacked . | . . . . . . . Hacks Repelled . | . . . . . . . Allies | -11 -10 -10 -9 -9 -9 -8 -------- Run | Yrd Mat Min Mat Min Exi Min Total Allies . | . . . . . . . Largest Group . | . . . . . . . Highest-Rated Group . | . . . . . . . Highest-Rated Ally . | . . . . . . . Total Orders . | . . . . . . . Ally Attacks . | . . . . . . . Total Damage . | . . . . . . . Kills . | . . . . . . . Allies Corrupted . | . . . . . . . Allies Melted . | . . . . . . . Intel | -11 -10 -10 -9 -9 -9 -8 ------- Run | Yrd Mat Min Mat Min Exi Min Robot Analysis Total 1 | . 1 . . . . . Derelict Logs Recovered 2 | . . . . 2 . . Drone Launches . | . . . . . . . Drone Recoveries . | . . . . . . . Exploration | -11 -10 -10 -9 -9 -9 -8 ------------- Run | Yrd Mat Min Mat Min Exi Min Turns Passed 2854 | 71 861 44 993 249 347 289 Spaces Moved 1508 | 52 481 31 525 139 210 70 Core 5 | 5 . . . . . . Treads 575 | . . . 156 139 210 70 Legs 928 | 47 481 31 369 . . . Wheels . | . . . . . . . Hover . | . . . . . . . Flight . | . . . . . . . Fastest Speed 50 | 50 120 120 120 160 160 160 Average Speed 140 | 114 120 120 147 160 160 160 Slowest Speed 240 | 120 190 120 240 160 160 160 Overloaded Moves . | . . . . . . . Propulsion Burnouts . | . . . . . . . Robots Hopped . | . . . . . . . Cave-ins Triggered . | . . . . . . . Exploration Rate (%) 36 | 3 69 12 49 44 60 18 Regions Visited 6 Branch Regions 4 Pre-discovered Areas 1 | . . . . 1 . . Known Exits Taken 5 | . 1 1 1 1 1 . Unknown Exits Taken 1 | 1 . . . . . . Scrap Searched 1 | . . . . 1 . . Spaces Dug . | . . . . . . . Terrain Destroyed . | . . . . . . . Melee . | . . . . . . . Projectile . | . . . . . . . AOE . | . . . . . . . Terrain Rammed . | . . . . . . . Walls Destroyed . | . . . . . . . Machines Disabled . | . . . . . . . Actions | -11 -10 -10 -9 -9 -9 -8 --------- Run | Yrd Mat Min Mat Min Exi Min Total 1975 | 60 632 34 656 160 221 212 Wait 260 | . 54 . 60 19 8 119 Move 1502 | 51 480 30 524 138 209 70 Hop . | . . . . . . . Pick Up 22 | 3 10 1 5 . 1 2 Fast Attach 18 | 6 4 . 8 . . . Attach 4 | . 2 . . . . 2 Detach 1 | . . . 1 . . . Swap 8 | . 3 . 3 . 2 . Drop 18 | . 6 1 10 . 1 . Fire 140 | . 71 2 45 3 . 19 Melee . | . . . . . . . Ram . | . . . . . . . Kick 2 | . 2 . . . . . Crush . | . . . . . . . Escape Stasis . | . . . . . . . Rewire . | . . . . . . . Trap . | . . . . . . . Miscellaneous . | . . . . . . . Route ------- -11/Scrapyard -10/Materials (discovered 5 exits: *Mat x3 / *Min x2) -10/Mines -9/Materials (discovered 3 exits: [*Mat x2] / *Min) -9/Mines (discovered 2 exits: [*Mat] / *Exi) -9/Exiles -8/Mines History --------- Turn | Location | Event 2 | -11/Scrapyard | Met Revision 17 5 | -11/Scrapyard | Discovered new exit (range 14) 72 | -11/Scrapyard | Entered Materials 266 | -10/Materials | Discovered new exit (range 16) 283 | -10/Materials | Identified exit to Materials 307 | -10/Materials | Build established: Mutant 562 | -10/Materials | Discovered exit to Materials (range 10) 587 | -10/Materials | Discovered new exit (range 5) 618 | -10/Materials | Identified exit to Mines 629 | -10/Materials | Discovered exit to Mines (range 13) 764 | -10/Materials | Lost 3 parts (1p1n1w) 835 | -10/Materials | Core integrity fell below 50% 858 | -10/Materials | Discovered exit to Materials (range 5) 933 | -10/Materials | Entered Mines 939 | -10/Mines | Met a Derelict bent on vengeance 957 | -10/Mines | Discovered exit to Materials (range 9) 977 | -10/Mines | Entered Materials 977 | -9/Materials | Evolved 2 slots: Utility x2 1316 | -9/Materials | Discovered new exit (range 16) 1779 | -9/Materials | Discovered new exit (range 11) 1905 | -9/Materials | Discovered new exit (range 11) 1969 | -9/Materials | Identified exit to Mines 1970 | -9/Materials | Entered Mines 1993 | -9/Mines | Discovered new exit (range 6) 2055 | -9/Mines | Assembled infested the area 2063 | -9/Mines | Learned Materials emergency access door positions 2078 | -9/Mines | Core integrity fell below 50% 2091 | -9/Mines | Met 8R-AWN 2109 | -9/Mines | Lost 3 parts (1p1n1u) 2178 | -9/Mines | Learned location of Zion (-7) 2213 | -9/Mines | Discovered new exit (range 5) 2218 | -9/Mines | Identified exit to Exiles 2219 | -9/Mines | Entered Exiles 2259 | -9/Exiles | Welcomed by 8R-AWN 2288 | -9/Exiles | Met EX-HEX 2335 | -9/Exiles | Met EX-BIN 2354 | -9/Exiles | Aligned with FarCom system 2355 | -9/Exiles | Given EX-Vault access code 2392 | -9/Exiles | Opened EX-Vault 2409 | -9/Exiles | Found Trap Reconfigurator 2451 | -9/Exiles | Warned to stay clear of 0b10 Research branches 2496 | -9/Exiles | Met EX-DEC 2554 | -9/Exiles | Discovered new exit (range 10) 2565 | -9/Exiles | Identified exit to Mines 2566 | -9/Exiles | Left Exiles lab with Trap Reconfigurator 2566 | -9/Exiles | Entered Mines 2831 | -8/Mines | Core integrity fell below 20% 2856 | -8/Mines | Core destroyed Last Messages --------------- 02813_ K-01 Serf collects debris. 02822_ L-31 Rogue suffers critical hit (Burn). 02822_ Katana melted. 02822_ L-31 Rogue destroyed. 02824_ Imp. Treads destroyed. 02834_ Heat Sink destroyed. 02834_ G-47 Trooper suffers critical hit (Burn). 02842_ G-47 Trooper heat short circuits Aluminum Leg. 02842_ Lgt. Ion Engine destroyed. 02843_ Signal Interpreter broken. 02843_ Overheating: Short circuit. 02846_ K-01 Serf collects debris. 02852_ Overheating: Imp. Terrain Scanner damaged (-12). 02853_ K-01 Serf collects debris. 02855_ Overheating: Imp. Terrain Scanner damaged (-7). 02855_ Lgt. Nuclear Core melted. 02855_ Imp. Heat Sink melted. 02855_ G-47 Trooper destroyed. 02855_ Switching to secondary target: G-47 Trooper. 02856_ Overheating: Core damaged (-76). Map ----- +----------------------------------------------------+ | | | | | | | | | | | ?????????????????????????????????????????????????? | | ???????????????#?????????????????????????????????? | | ???#??#?#??????#???###?#??????????????#??????????? | | ###??????##??####????#???#???????????????????????? | | ###???????## ##???#???????????????????????????? | | ######### #??????#?#??????#???????????????? | | % #######????####?????????????????? | | ###### ##?### ?????????????????? | | ##??#?# #### #????????????????? | | ###??#??## #### ##?# #?????????????????? | | ##???????### ##### k ### #?##???#??????????? | | ###??????#??# ##### ## #??????#??????????? | | ??????#??#??## ### # #?????????????????? | | ?#???????????# ## #?????????????????? | | ????##???????# ## #?????????????????? | | ??#?#?#???#??# g ##?????#??????????? | | ?#???????#???# #????????????????? | | ?#??#????????###### #???????#????????? | | ????????#???#?????# ###?#?????????????? | | ??????????#????#?## ###?????????????????? | | ?#???#? ?????# $ @ ##??????#???#????????? | | ????#??? ?????#=% % #????????????????????? | | ?????????? ?### ## ! #???????????????????? | | ???????? ????????# #??????????????????? | | ????????????#?? r #######??????????????????? | | ?????????? ?? ####k #?#??#??????#????????????? | | ???????? ??#? ???### ????????????????????????? | | ?????????? ???#????## ???????????#???????????? | | ????????????????????# ?#???????#?????????????? | | ????????????????????# ???????????????????????? | | ????????????????????##?????????????##????????????? | | ????????????????????????????#????????????????????? | | ?????????????????????????????????????????????????? | | ?????????????????#???????????????????????????????? | | ?????????????????????????????????????????????????? | | ?????????????????????????#???#???????????????????? | | ?????????????????????????????????????????????????? | | ?????????????????????????????????????????????????? | | ?????????????????????????????????????????????????? | | ?????????????????????????????????????????????????? | | ?????????????????????????????????????????????????? | | ?????????????????????????????????????????????????? | | ?????????????????????????????????????????????????? | | ?????????????????????????????????????????????????? | | ?????????????????????????????????????????????????? | +----------------------------------------------------+ Best States ------------- Heat Dissipation 38 Energy Generation 12 Energy Capacity 265 Matter Stores 300 Matter Capacity 300 Sight Range 16 Robot Scan Range 14 Terrain Scan Range 16 Terrain Scan Density 10 Evasion (%) 55 Recoil Reduction 2 Item Schematics ----------------- None Robot Schematics ------------------ None Fabricated ------------ Nothing Alien Tech Used ----------------- None Achievements -------------- None Challenges ------------ None Game ------ Seed SpliceAnalysisSword Manual? 0 Play Time 00:25:44 Cumulative 25.2 hours Start 2024.05.05 @ 18:08:53 End 2024.05.05 @ 21:02:35 Sessions 4 Manual Loads 0 Difficulty Rogue Special Mode None Game No. 32 Rogue 32 Adventurer 0 Explorer 0 Win Type - Total 0 Types 0/0/0/0/0/0/0/0/0 Lore% 24 Gallery% 26 Achievement% 26 Wizard Run 0 Options --------- Layout 0 ASCII 0 Keyboard 0 Movement Mouse Keybinds 0 Fullscreen 1 Font 18/SmallcapsGlow Map View 76x50 Zoom Use 43% Tactical HUD 1 Map Filters NONE Filters NONE Steam 1 RUN: 6f90982b-4c05-4928-ae01-bbd77fc87a5e